fUSD/lending_fUSD_20250511
["ID","MTS","AMOUNT","RATE_DAILY","PERIOD"]
[360757628,1746980217898,-1237.25223,0.00041288,30]
[360757629,1746980217924,-2110.0,0.00041302,30]
[360757630,1746980217951,-202.24993792,0.00041385,30]
[360757631,1746980217978,-253.31866889,0.00041385,30]
[360757632,1746980218005,-150.0,0.00041395,30]
[360757633,1746980218034,-1156.34,0.00041404,30]
[360757634,1746980218062,-300.0,0.00041404,30]
[360757635,1746980218089,-375.0,0.00041404,30]
[360757636,1746980218116,-452.44,0.00041404,30]
[360757637,1746980218142,-325.0,0.00041404,30]
[360757638,1746980218168,-150.0,0.00041404,30]
[360757639,1746980218194,-150.0,0.00041404,30]
[360757640,1746980218221,-352.72,0.00041404,30]
[360757641,1746980218249,-1156.34,0.00041404,30]
[360757642,1746980218274,-150.09,0.00041404,30]
[360757643,1746980218303,-452.44,0.00041404,30]
[360757644,1746980218329,-1156.34,0.00041404,30]
[360757645,1746980218355,-150.09,0.00041404,30]
[360757646,1746980218381,-452.44,0.00041404,30]
[360757647,1746980218407,-352.72,0.00041404,30]
[360757648,1746980218433,-452.44,0.00041404,30]
[360757649,1746980218460,-352.72,0.00041404,30]
[360757650,1746980218487,-1156.34,0.00041404,30]
[360757651,1746980218513,-150.09,0.00041404,30]
[360757652,1746980218541,-2295.25,0.00041404,30]
[360757653,1746980218568,-150.09,0.00041404,30]
[360757654,1746980218594,-452.44,0.00041404,30]
[360757655,1746980218620,-352.72,0.00041404,30]
[360757656,1746980218648,-451.96,0.00041404,30]
[360757657,1746980218675,-352.72,0.00041404,30]
[360757658,1746980218703,-150.09,0.00041404,30]
[360757659,1746980218730,-352.72,0.00041404,30]
[360757660,1746980218756,-352.72,0.00041404,30]
[360757661,1746980218786,-150.0,0.00041439,30]
[360757662,1746980218813,-1237.25223,0.00041488,30]
[360757663,1746980218842,-307.34299,0.000415,120]
[360757664,1746980218868,-150.0,0.000415,120]
[360757665,1746980218898,-160.0,0.000415,39]
[360757666,1746980218924,-160.0,0.000415,39]
[360757667,1746980218950,-150.0,0.0004151,30]
[360757668,1746980218975,-202.24993792,0.00041552,30]
[360757669,1746980219001,-253.31866889,0.00041552,30]
[360757670,1746980219185,-150.0,0.00041552,30]
[360757671,1746980219226,-150.0,0.00041571,30]
[360757672,1746980219251,-150.0,0.00041603,30]
[360757673,1746980219276,-312.0,0.00041646,30]
[360757674,1746980219305,-312.0,0.00041646,30]
[360757675,1746980219331,-312.0,0.00041646,30]
[360757676,1746980219357,-312.0,0.00041646,30]
[360757677,1746980219383,-312.0,0.00041646,30]
[360757678,1746980219408,-312.0,0.00041646,30]
[360757679,1746980219434,-312.0,0.00041646,30]
[360757680,1746980219459,-312.0,0.00041646,30]
[360757681,1746980219487,-312.0,0.00041646,30]
[360757682,1746980219513,-312.0,0.00041646,30]
[360757683,1746980219540,-312.0,0.00041646,30]
[360757684,1746980219567,-312.0,0.00041646,30]
[360757685,1746980219592,-312.0,0.00041646,30]
[360757686,1746980219621,-312.0,0.00041646,30]
[360757687,1746980219649,-572.0,0.00041652,30]
[360757688,1746980219677,-572.0,0.00041652,30]
[360757689,1746980219704,-572.0,0.00041652,30]
[360757690,1746980219731,-572.0,0.00041652,30]
[360757691,1746980219758,-572.0,0.00041652,30]
[360757692,1746980219790,-572.0,0.00041652,30]
[360757693,1746980219816,-572.0,0.00041652,30]
[360757694,1746980219846,-572.0,0.00041652,30]
[360757695,1746980219875,-572.0,0.00041652,30]
[360757696,1746980219902,-572.0,0.00041652,30]
[360757697,1746980219929,-572.0,0.00041652,30]
[360757698,1746980219957,-572.0,0.00041652,30]
[360757699,1746980219985,-572.0,0.00041652,30]
[360757700,1746980220012,-572.0,0.00041652,30]
[360757701,1746980220040,-312.0,0.00041667,30]
[360757702,1746980220068,-312.0,0.00041667,30]
[360757703,1746980220094,-312.0,0.00041667,30]
[360757704,1746980220122,-312.0,0.00041667,30]
[360757705,1746980220150,-312.0,0.00041667,30]
[360757706,1746980220178,-312.0,0.00041667,30]
[360757707,1746980220204,-312.0,0.00041667,30]
[360757708,1746980220231,-312.0,0.00041667,30]
[360757709,1746980220259,-312.0,0.00041667,30]
[360757710,1746980220288,-312.0,0.00041667,30]
[360757711,1746980220316,-312.0,0.00041667,30]
[360757712,1746980220345,-312.0,0.00041667,30]
[360757713,1746980220371,-312.0,0.00041667,30]
[360757714,1746980220398,-312.0,0.00041667,30]
[360757715,1746980220426,-150.0,0.00041673,30]
[360757716,1746980220452,-572.0,0.00041673,30]
[360757717,1746980220480,-572.0,0.00041673,30]
[360757718,1746980220508,-572.0,0.00041673,30]
[360757719,1746980220540,-572.0,0.00041673,30]
[360757720,1746980220568,-572.0,0.00041673,30]
[360757721,1746980220596,-572.0,0.00041673,30]
[360757722,1746980220623,-572.0,0.00041673,30]
[360757723,1746980220651,-572.0,0.00041673,30]
[360757724,1746980220681,-572.0,0.00041673,30]
[360757725,1746980220710,-572.0,0.00041673,30]
[360757726,1746980220740,-572.0,0.00041673,30]
[360757727,1746980220769,-572.0,0.00041673,30]
[360757728,1746980220805,-572.0,0.00041673,30]
[360757729,1746980220833,-572.0,0.00041673,30]
[360757730,1746980220860,-1237.25223,0.00041688,30]
[360757731,1746980220887,-312.0,0.00041688,30]
[360757732,1746980220917,-312.0,0.00041688,30]
[360757733,1746980220945,-312.0,0.00041688,30]
[360757734,1746980220973,-312.0,0.00041688,30]
[360757735,1746980221002,-312.0,0.00041688,30]
[360757736,1746980221029,-312.0,0.00041688,30]
[360757737,1746980221059,-312.0,0.00041688,30]
[360757738,1746980221085,-312.0,0.00041688,30]
[360757739,1746980221112,-312.0,0.00041688,30]
[360757740,1746980221139,-312.0,0.00041688,30]
[360757741,1746980221166,-312.0,0.00041688,30]
[360757742,1746980221193,-312.0,0.00041688,30]
[360757743,1746980221219,-312.0,0.00041688,30]
[360757744,1746980221248,-312.0,0.00041688,30]
[360757745,1746980221275,-572.0,0.00041694,30]
[360757746,1746980221309,-572.0,0.00041694,30]
[360757747,1746980221336,-572.0,0.00041694,30]
[360757748,1746980221363,-572.0,0.00041694,30]
[360757749,1746980221389,-572.0,0.00041694,30]
[360757750,1746980221416,-572.0,0.00041694,30]
[360757751,1746980221442,-572.0,0.00041694,30]
[360757752,1746980221469,-572.0,0.00041694,30]
[360757753,1746980221495,-572.0,0.00041694,30]
[360757754,1746980221521,-572.0,0.00041694,30]
[360757755,1746980221550,-572.0,0.00041694,30]
[360757756,1746980221577,-572.0,0.00041694,30]
[360757757,1746980221604,-572.0,0.00041694,30]
[360757758,1746980221631,-572.0,0.00041694,30]
[360757759,1746980221658,-2705.36314151,0.000417,120]
[360757760,1746980221685,-312.0,0.00041709,30]
[360757761,1746980221712,-312.0,0.00041709,30]
[360757762,1746980221738,-312.0,0.00041709,30]
[360757763,1746980221764,-312.0,0.00041709,30]
[360757764,1746980221797,-312.0,0.00041709,30]
[360757765,1746980222016,-312.0,0.00041709,30]
[360757766,1746980222047,-312.0,0.00041709,30]
[360757767,1746980222074,-312.0,0.00041709,30]
[360757768,1746980222102,-312.0,0.00041709,30]
[360757769,1746980222128,-312.0,0.00041709,30]
[360757770,1746980222155,-312.0,0.00041709,30]
[360757771,1746980222182,-312.0,0.00041709,30]
[360757772,1746980222209,-312.0,0.00041709,30]
[360757773,1746980222235,-312.0,0.00041709,30]
[360757774,1746980222262,-572.0,0.00041715,30]
[360757775,1746980222291,-572.0,0.00041715,30]
[360757776,1746980222318,-572.0,0.00041715,30]
[360757777,1746980222344,-572.0,0.00041715,30]
[360757778,1746980222370,-572.0,0.00041715,30]
[360757779,1746980222397,-572.0,0.00041715,30]
[360757780,1746980222424,-572.0,0.00041715,30]
[360757781,1746980222450,-572.0,0.00041715,30]
[360757782,1746980222476,-572.0,0.00041715,30]
[360757783,1746980222503,-572.0,0.00041715,30]
[360757784,1746980222530,-572.0,0.00041715,30]
[360757785,1746980222558,-572.0,0.00041715,30]
[360757786,1746980222585,-572.0,0.00041715,30]
[360757787,1746980222612,-572.0,0.00041715,30]
[360757788,1746980222644,-202.24993792,0.0004172,30]
[360757789,1746980222671,-253.31866889,0.0004172,30]
[360757790,1746980222697,-312.0,0.0004173,30]
[360757791,1746980222724,-312.0,0.0004173,30]
[360757792,1746980222751,-312.0,0.0004173,30]
[360757793,1746980222781,-312.0,0.0004173,30]
[360757794,1746980222808,-312.0,0.0004173,30]
[360757795,1746980222836,-312.0,0.0004173,30]
[360757796,1746980222864,-312.0,0.0004173,30]
[360757797,1746980222892,-312.0,0.0004173,30]
[360757798,1746980222919,-312.0,0.0004173,30]
[360757799,1746980222946,-312.0,0.0004173,30]
[360757800,1746980222974,-312.0,0.0004173,30]
[360757801,1746980223000,-312.0,0.0004173,30]
[360757802,1746980223034,-312.0,0.0004173,30]
[360757803,1746980223062,-312.0,0.0004173,30]
[360757804,1746980223093,-572.0,0.00041736,30]
[360757805,1746980223123,-572.0,0.00041736,30]
[360757806,1746980223151,-572.0,0.00041736,30]
[360757807,1746980223181,-572.0,0.00041736,30]
[360757808,1746980223210,-572.0,0.00041736,30]
[360757809,1746980223239,-572.0,0.00041736,30]
[360757810,1746980223268,-572.0,0.00041736,30]
[360757811,1746980223301,-572.0,0.00041736,30]
[360757812,1746980223331,-572.0,0.00041736,30]
[360757813,1746980223361,-572.0,0.00041736,30]
[360757814,1746980223390,-572.0,0.00041736,30]
[360757815,1746980223420,-572.0,0.00041736,30]
[360757816,1746980223449,-572.0,0.00041736,30]
[360757817,1746980223477,-572.0,0.00041736,30]
[360757818,1746980223506,-150.0,0.00041741,30]
[360757819,1746980223538,-312.0,0.00041757,30]
[360757820,1746980223569,-312.0,0.00041757,30]
[360757821,1746980223600,-312.0,0.00041757,30]
[360757822,1746980223629,-312.0,0.00041757,30]
[360757823,1746980223658,-312.0,0.00041757,30]
[360757824,1746980223687,-312.0,0.00041757,30]
[360757825,1746980223717,-312.0,0.00041757,30]
[360757826,1746980223748,-312.0,0.00041757,30]
[360757827,1746980223788,-312.0,0.00041757,30]
[360757828,1746980223819,-312.0,0.00041757,30]
[360757829,1746980223848,-312.0,0.00041757,30]
[360757830,1746980223879,-312.0,0.00041757,30]
[360757831,1746980223908,-312.0,0.00041757,30]
[360757832,1746980223938,-572.0,0.00041764,30]
[360757833,1746980223968,-572.0,0.00041764,30]
[360757834,1746980223998,-572.0,0.00041764,30]
[360757835,1746980224028,-572.0,0.00041764,30]
[360757836,1746980224059,-572.0,0.00041764,30]
[360757837,1746980224090,-572.0,0.00041764,30]
[360757838,1746980224119,-572.0,0.00041764,30]
[360757839,1746980224148,-572.0,0.00041764,30]
[360757840,1746980224177,-572.0,0.00041764,30]
[360757841,1746980224208,-572.0,0.00041764,30]
[360757842,1746980224247,-2110.0,0.00041802,30]
[360757843,1746980224278,-150.0,0.00041884,30]
[360757844,1746980224310,-202.24993792,0.00041887,30]
[360757845,1746980224339,-253.31866889,0.00041887,30]
[360757846,1746980224366,-1237.25223,0.00041888,30]
[360757847,1746980224394,-1243.0,0.000419,120]
[360757848,1746980224421,-150.0,0.00041906,30]
[360757849,1746980224450,-2571.0,0.0004197,120]
[360757850,1746980224478,-682.0,0.0004197,120]
[360757851,1746980224505,-389.0,0.0004197,120]
[360757852,1746980224533,-682.0,0.0004197,120]
[360757853,1746980224560,-2571.0,0.0004197,120]
[360757854,1746980224587,-389.0,0.0004197,120]
[360757855,1746980224612,-1577.0,0.0004197,120]
[360757856,1746980224639,-1577.0,0.0004197,120]
[360757857,1746980224666,-150.0,0.00041971,30]
[360757858,1746980224694,-2571.0,0.0004198,120]
[360757859,1746980224921,-682.0,0.0004198,120]
[360757860,1746980224950,-389.0,0.0004198,120]
[360757861,1746980224977,-682.0,0.0004198,120]
[360757862,1746980225004,-2571.0,0.0004198,120]
[360757863,1746980225030,-389.0,0.0004198,120]
[360757864,1746980225060,-682.0,0.0004198,120]
[360757865,1746980225086,-2571.0,0.0004198,120]
[360757866,1746980225112,-389.0,0.0004198,120]
[360757867,1746980225138,-2577.43,0.0004198,120]
[360757868,1746980225164,-690.15,0.0004198,120]
[360757869,1746980225190,-398.45,0.0004198,120]
[360757870,1746980225216,-1577.0,0.0004198,120]
[360757871,1746980225243,-1577.0,0.0004198,120]
[360757872,1746980225270,-1577.0,0.0004198,120]
[360757873,1746980225300,-1581.89,0.0004198,120]
[360757874,1746980225326,-150.12195821,0.00041987,30]
[360757875,1746980225353,-682.0,0.0004199,120]
[360757876,1746980225380,-2571.0,0.0004199,120]
[360757877,1746980225409,-389.0,0.0004199,120]
[360757878,1746980225436,-682.0,0.0004199,120]
[360757879,1746980225470,-2571.0,0.0004199,120]
[360757880,1746980225497,-389.0,0.0004199,120]
[360757881,1746980225545,-682.0,0.0004199,120]
[360757882,1746980225575,-2571.0,0.0004199,120]
[360757883,1746980225603,-389.0,0.0004199,120]
[360757884,1746980225632,-682.0,0.0004199,120]
[360757885,1746980225660,-2571.0,0.0004199,120]
[360757886,1746980225688,-389.0,0.0004199,120]
[360757887,1746980225716,-1577.0,0.0004199,120]
[360757888,1746980225743,-1577.0,0.0004199,120]
[360757889,1746980225772,-1577.0,0.0004199,120]
[360757890,1746980225809,-1577.0,0.0004199,120]
[360757891,1746980225839,-251.12,0.0004199,120]
[360757892,1746980225872,-50000.0,0.00042,42]
[360757893,1746980225901,-367.94234403,0.00042,120]
[360757894,1746980225930,-472.42454539,0.00042,120]
[360757895,1746980225956,-276.28757787,0.00042,30]
[360757896,1746980225982,-20455.0,0.00042,60]
[360757897,1746980226008,-1623.0,0.00042,120]
[360757898,1746980226037,-3295.0,0.00042,120]
[360757899,1746980226065,-2000.0,0.00042,120]
[360757900,1746980226094,-1400.0,0.00042,120]
[360757901,1746980226123,-900.0,0.00042,43]
[360757902,1746980226149,-950.83339764,0.00042,120]
[360757903,1746980226176,-307.024798,0.00042,30]
[360757904,1746980226205,-3143.46910267,0.00042,120]
[360757905,1746980226234,-43924.54622425,0.00042,30]
[360757906,1746980226263,-1000.0,0.00042,120]
[360757907,1746980226295,-284.64651419,0.00042,120]
[360757908,1746980226326,-10000.0,0.00042,120]
[360757909,1746980226358,-150.0,0.00042041,120]
[360757910,1746980226386,-202.24993792,0.00042055,30]
[360757911,1746980226420,-253.31866889,0.00042055,30]
[360757912,1746980226450,-150.0,0.00042055,30]
[360757913,1746980226479,-150.0,0.00042086,30]
[360757914,1746980226508,-1237.25223,0.00042088,30]
[360757915,1746980226540,-315.54713822,0.00042121,120]
[360757916,1746980226569,-283.127237,0.00042136,120]
[360757917,1746980226599,-317.059839,0.00042136,120]
[360757918,1746980226627,-256.343089,0.00042136,120]
[360757919,1746980226657,-150.0,0.00042139,30]
[360757920,1746980226686,-403.35,0.00042148,30]
[360757921,1746980226716,-2899.68,0.0004218,110]
[360757922,1746980226745,-150.0,0.00042197,30]
[360757923,1746980226774,-202.24993792,0.00042222,30]
[360757924,1746980226810,-253.31866889,0.00042222,30]
[360757925,1746980226838,-1237.25223,0.00042288,30]
[360757926,1746980226867,-2110.0,0.00042302,30]
[360757927,1746980226896,-150.0,0.00042373,30]
[360757928,1746980226923,-202.24993792,0.00042389,30]
[360757929,1746980226954,-253.31866889,0.00042389,30]
[360757930,1746980226981,-150.0,0.00042431,30]
[360757931,1746980227007,-150.0,0.00042431,30]
[360757932,1746980227039,-449.63,0.00042465,120]
[360757933,1746980227066,-1237.25223,0.00042488,30]
[360757934,1746980227093,-307.34299,0.000425,120]
[360757935,1746980227120,-150.0,0.000425,120]
[360757936,1746980227147,-341.59462319,0.000425,120]
[360757937,1746980227176,-160.0,0.000425,44]
[360757938,1746980227205,-160.0,0.000425,44]
[360757939,1746980227233,-2000.0,0.000425,60]
[360757940,1746980227261,-10035.345216,0.000425,120]
[360757941,1746980227295,-150.0,0.00042509,30]
[360757942,1746980227322,-1000.0,0.00042541,30]
[360757943,1746980227350,-202.24993792,0.00042557,30]
[360757944,1746980227378,-253.31866889,0.00042557,30]
[360757945,1746980227406,-150.0,0.00042557,30]
[360757946,1746980227433,-150.0,0.00042606,30]
[360757947,1746980227461,-150.0,0.00042655,120]
[360757948,1746980227489,-1237.25223,0.00042688,30]
[360757949,1746980227516,-202.24993792,0.00042724,30]
[360757950,1746980227545,-253.31866889,0.00042724,30]
[360757951,1746980227573,-5000.0,0.00042748,31]
[360757952,1746980227601,-150.0,0.00042777,30]
[360757953,1746980227909,-1575.56306116,0.000428,120]
[360757954,1746980227938,-2110.0,0.00042802,30]
[360757955,1746980227966,-150.0,0.00042822,30]
[360757956,1746980227993,-150.0,0.0004284,30]
[360757957,1746980228020,-887.38171765,0.00042847,30]
[360757958,1746980228048,-150.0,0.00042862,30]
[360757959,1746980228074,-150.0,0.00042862,30]
[360757960,1746980228100,-150.0,0.00042862,30]
[360757961,1746980228127,-1032.78112356,0.00042862,30]
[360757962,1746980228154,-914.24566959,0.00042862,30]
[360757963,1746980228180,-969.90917805,0.00042862,30]
[360757964,1746980228209,-150.0,0.00042862,30]
[360757965,1746980228235,-8800.12485592,0.00042862,30]
[360757966,1746980228262,-3527.04111504,0.0004288,120]
[360757967,1746980228292,-1237.25223,0.00042888,30]
[360757968,1746980228318,-202.24993792,0.00042892,30]
[360757969,1746980228345,-253.31866889,0.00042892,30]
[360757970,1746980228371,-150.0,0.00042892,30]
[360757971,1746980228397,-50000.0,0.000429,60]
[360757972,1746980228425,-50000.0,0.00043,43]
[360757973,1746980228458,-900.0,0.00043,44]
[360757974,1746980228485,-272.7364429,0.00043,120]
[360757975,1746980228514,-66849.38095792,0.00043,30]
[360757976,1746980228544,-4783.35621337,0.00043,120]
[360757977,1746980228574,-1348.97,0.00043,120]
[360757978,1746980228604,-244.56223651,0.00043,120]
[360757979,1746980228633,-1000.0,0.00043,120]
[360757980,1746980228662,-950.0,0.00043,120]
[360757981,1746980228691,-54350.0,0.00043,120]
[360757982,1746980228719,-778.25,0.00043,120]
[360757983,1746980228748,-10000.0,0.00043,120]
[360757984,1746980228778,-741.47,0.00043,120]
[360757985,1746980228811,-742.12,0.00043,120]
[360757986,1746980228840,-760.68092702,0.00043027,30]
[360757987,1746980228869,-150.0,0.00043059,30]
[360757988,1746980228897,-202.24993792,0.00043059,30]
[360757989,1746980228925,-253.31866889,0.00043059,30]
[360757990,1746980228954,-150.0,0.00043072,120]
[360757991,1746980228982,-150.0,0.00043073,30]
[360757992,1746980229010,-1237.25223,0.00043088,30]
[360757993,1746980229039,-150.0,0.00043122,30]
[360757994,1746980229068,-150.0,0.00043135,30]
[360757995,1746980229096,-202.24993792,0.00043227,30]
[360757996,1746980229124,-253.31866889,0.00043227,30]
[360757997,1746980229151,-350.0,0.00043259,35]
[360757998,1746980229180,-150.0,0.0004326,30]
[360757999,1746980229207,-150.0,0.0004326,30]
[360758000,1746980229236,-129010.85972698,0.0004328,60]
[360758001,1746980229264,-1237.25223,0.00043288,30]
[360758002,1746980229296,-150.0,0.00043291,120]
[360758003,1746980229324,-621.78829552,0.00043301,35]
[360758004,1746980229352,-644.79446246,0.00043301,45]
[360758005,1746980229380,-2110.0,0.00043302,30]
[360758006,1746980229408,-150.0,0.00043307,30]
[360758007,1746980229435,-150.0,0.00043352,30]
[360758008,1746980229462,-6354.41733795,0.0004336,30]
[360758009,1746980230540,-202.24993792,0.00043394,30]
[360758010,1746980230567,-253.31866889,0.00043394,30]
[360758011,1746980230594,-1011.45187631,0.00043405,30]
[360758012,1746980230621,-150.0,0.00043448,30]
[360758013,1746980230648,-150.0,0.00043467,30]
[360758014,1746980230677,-1237.25223,0.00043488,30]
[360758015,1746980230713,-2837.37937049,0.00043498,45]
[360758016,1746980230739,-2009.35,0.000435,60]
[360758017,1746980230766,-307.34299,0.000435,120]
[360758018,1746980230797,-150.0,0.000435,120]
[360758019,1746980230828,-160.0,0.000435,48]
[360758020,1746980230856,-160.0,0.000435,48]
[360758021,1746980230884,-9631.88055593,0.000435,120]
[360758022,1746980230912,-150.0,0.0004354,30]
[360758023,1746980230938,-202.24993792,0.00043561,30]
[360758024,1746980230966,-253.31866889,0.00043561,30]
[360758025,1746980230992,-150.0,0.00043561,30]
[360758026,1746980231022,-150.0,0.0004358,120]
[360758027,1746980231050,-267.3,0.000436,120]
[360758028,1746980231076,-257.02,0.000436,120]
[360758029,1746980231102,-5867.56,0.000436,120]
[360758030,1746980231129,-1873.1,0.000436,120]
[360758031,1746980231155,-503.62556481,0.00043611,30]
[360758032,1746980231182,-1237.25223,0.00043688,30]
[360758033,1746980231207,-1568.60081686,0.000437,120]
[360758034,1746980231426,-10000.0,0.000437,120]
[360758035,1746980231454,-202.24993792,0.00043729,30]
[360758036,1746980231482,-253.31866889,0.00043729,30]
[360758037,1746980231510,-917.80811679,0.00043757,45]
[360758038,1746980231540,-150.0,0.0004376,30]
[360758039,1746980231566,-150.0,0.00043774,30]
[360758040,1746980231593,-483.65398624,0.000438,30]
[360758041,1746980231620,-2000.0,0.000438,120]
[360758042,1746980231648,-2000.0,0.000438,120]
[360758043,1746980231684,-2000.0,0.000438,120]
[360758044,1746980231717,-200.0,0.000438,120]
[360758045,1746980231745,-696.28067239,0.000438,120]
[360758046,1746980231771,-2110.0,0.00043802,30]
[360758047,1746980231807,-595.0,0.0004381,120]
[360758048,1746980231834,-150.0,0.00043812,30]
[360758049,1746980231862,-150.0,0.00043812,30]
[360758050,1746980231889,-449.63,0.00043835,120]
[360758051,1746980231916,-400.0,0.00043835,60]
[360758052,1746980231943,-400.0,0.00043835,60]
[360758053,1746980231969,-278.43814952,0.00043835,60]
[360758054,1746980231995,-263.11077267,0.00043836,120]
[360758055,1746980232022,-500.0,0.00043836,90]
[360758056,1746980232051,-202.24993792,0.00043896,30]
[360758057,1746980232078,-253.31866889,0.00043896,30]
[360758058,1746980232104,-150.0,0.00043986,30]
[360758059,1746980232130,-167.24818027,0.00043986,30]
[360758060,1746980232158,-50000.0,0.00044,44]
[360758061,1746980232183,-1510.01,0.00044,120]
[360758062,1746980232210,-5000.0,0.00044,30]
[360758063,1746980232236,-1011.9830426,0.00044,30]
[360758064,1746980232265,-900.0,0.00044,45]
[360758065,1746980232295,-2699.52152012,0.00044,120]
[360758066,1746980232321,-2000.0,0.00044,120]
[360758067,1746980232349,-1300.0,0.00044,120]
[360758068,1746980232375,-1500.0,0.00044,120]
[360758069,1746980232402,-324.0,0.00044,120]
[360758070,1746980232428,-22971.0,0.00044,120]
[360758071,1746980232454,-150.0,0.00044007,30]
[360758072,1746980232479,-667.86400083,0.00044016,120]
[360758073,1746980232506,-202.24993792,0.00044064,30]
[360758074,1746980232532,-253.31866889,0.00044064,30]
[360758075,1746980232565,-150.0,0.00044064,30]
[360758076,1746980232592,-150.0,0.00044073,30]
[360758077,1746980232619,-1237.25223,0.00044088,30]
[360758078,1746980232645,-1817.43,0.00044136,120]
[360758079,1746980232672,-1817.43,0.00044136,120]
[360758080,1746980232698,-1817.43,0.00044136,120]
[360758081,1746980232723,-1817.43,0.00044136,120]
[360758082,1746980232750,-1817.43,0.00044136,120]
[360758083,1746980232776,-1817.43,0.00044136,120]
[360758084,1746980232806,-1817.43,0.00044136,120]
[360758085,1746980232833,-1817.43,0.00044136,120]
[360758086,1746980232859,-1817.43,0.00044136,120]
[360758087,1746980232885,-1817.43,0.00044136,120]
[360758088,1746980232910,-1817.43,0.00044136,120]
[360758089,1746980232936,-1817.43,0.00044136,120]
[360758090,1746980232961,-1817.43,0.00044136,120]
[360758091,1746980232988,-1817.43,0.00044136,120]
[360758092,1746980233013,-1817.43,0.00044136,120]
[360758093,1746980233042,-1817.43,0.00044136,120]
[360758094,1746980233069,-1817.43,0.00044136,120]
[360758095,1746980233096,-1817.43,0.00044136,120]
[360758096,1746980233122,-1817.43,0.00044136,120]
[360758097,1746980233148,-1817.43,0.00044136,120]
[360758098,1746980233176,-1817.43,0.00044136,120]
[360758099,1746980233202,-1817.43,0.00044136,120]
[360758100,1746980233229,-1817.43,0.00044136,120]
[360758101,1746980233256,-1817.58175569,0.00044136,120]
[360758102,1746980233283,-150.0,0.00044158,30]
[360758103,1746980233314,-350.0,0.00044218,35]
[360758104,1746980233342,-202.24993792,0.00044231,30]
[360758105,1746980233369,-253.31866889,0.00044231,30]
[360758106,1746980233396,-150.0,0.0004424,30]
[360758107,1746980233424,-500.0,0.00044246,60]
[360758108,1746980233451,-552.0,0.00044246,60]
[360758109,1746980233478,-150.0,0.00044273,30]
[360758110,1746980233505,-1000.0,0.00044282,30]
[360758111,1746980233531,-1237.25223,0.00044288,30]
[360758112,1746980233568,-74321.83049727,0.000443,120]
[360758113,1746980233595,-2110.0,0.00044302,30]
[360758114,1746980233623,-150.0,0.00044386,30]
[360758115,1746980233650,-202.24993792,0.00044398,30]
[360758116,1746980233677,-253.31866889,0.00044398,30]
[360758117,1746980233704,-150.0,0.00044474,30]
[360758118,1746980233731,-1237.25223,0.00044488,30]
[360758119,1746980233759,-307.34299,0.000445,120]
[360758120,1746980233794,-150.0,0.000445,120]
[360758121,1746980233823,-160.0,0.000445,52]
[360758122,1746980233851,-160.0,0.000445,52]
[360758123,1746980234048,-1167.28611402,0.000445,120]
[360758124,1746980234075,-150.0,0.00044503,30]
[360758125,1746980234103,-150.0,0.00044539,120]
[360758126,1746980234130,-150.0,0.00044566,30]
[360758127,1746980234156,-202.24993792,0.00044566,30]